bitfinex/quotes_SOLUSD_20240708
["timestamp","ask_amount","ask_price","bid_price","bid_amount"]
[1720415549360,100.0,134.01,133.97,37.58]
[1720415549560,100.0,133.99,133.96,25.97158063]
[1720415549742,100.0,133.99,133.96,54.1082]
[1720415550862,100.0,133.99,133.95,5.87409527]
[1720415551060,100.0,133.99,133.96,20.0]
[1720415551368,100.0,133.99,133.95,20.0]
[1720415551562,100.0,133.95,133.92,17.9767572]
[1720415551753,100.0,133.95,133.91,0.9725608]
[1720415551936,100.0,133.98,133.91,0.9725608]
[1720415552869,100.0,133.98,133.92,37.58]
[1720415553041,100.0,133.98,133.93,20.0]
[1720415554349,6.4929,134.04,133.93,20.0]
[1720415554350,100.0,133.95,133.93,20.0]
[1720415558371,100.0,133.97,133.93,20.0]
[1720415558559,6.4929,134.04,133.94,37.58]
[1720415558560,100.0,134.02,133.94,37.58]
[1720415558763,100.0,134.02,133.95,20.0]
[1720415559061,100.0,134.0,133.95,20.0]
[1720415559370,100.0,133.98,133.95,20.0]
[1720415559952,100.0,133.98,133.93,37.58]
[1720415560148,100.0,133.98,133.94,20.0]
[1720415560549,100.0,133.96,133.94,20.0]
[1720415561052,100.0,133.96,133.92,20.0]
[1720415562071,100.0,133.94,133.92,20.0]
[1720415564189,15.1402,133.99,133.92,20.0]
[1720415564190,100.0,133.96,133.92,20.0]
[1720415564349,100.0,133.98,133.92,20.0]
[1720415567858,100.0,133.96,133.92,20.0]
[1720415570178,100.0,133.96,133.91,6.92110527]
[1720415570481,15.1402,133.99,133.92,37.58]
[1720415570482,100.0,133.98,133.92,37.58]
[1720415571276,100.0,133.98,133.93,20.0]
[1720415571781,15.387,134.03,133.94,53.8432]
[1720415571782,100.0,134.02,133.94,53.8432]
[1720415572078,100.0,134.02,133.96,37.58]
[1720415572281,100.0,134.05,133.98,37.58]
[1720415572485,100.0,134.05,133.99,20.0]
[1720415572973,100.0,134.05,134.0,37.58]
[1720415573178,106.0062,134.08,134.01,20.0]
[1720415573667,100.0,134.05,134.01,20.0]
[1720415574282,100.0,134.01,133.97,15.4624]
[1720415574484,100.0,134.01,133.97,53.0424]
[1720415574681,100.0,134.01,133.96,37.58]
[1720415574985,100.0,133.99,133.96,37.58]
[1720415575479,100.0,133.99,133.93,15.5678]
[1720415575687,100.0,133.99,133.94,37.58]
[1720415575987,100.0,133.97,133.94,37.58]
[1720415576488,100.0,133.97,133.95,20.0]
[1720415577180,6.1405,134.02,133.95,20.0]
[1720415577380,0.17,134.01,133.95,20.0]
[1720415578082,100.0,133.97,133.95,20.0]
[1720415583390,100.0,133.95,133.93,21.55806354]
[1720415583685,100.0,133.95,133.94,20.0]
[1720415585971,100.0,133.95,133.93,5.99026354]
[1720415586174,100.0,133.95,133.91,0.9725608]
[1720415586471,100.0,133.93,133.91,0.9725608]
[1720415586881,100.0,133.96,133.91,38.5525608]
[1720415587085,100.0,133.98,133.91,38.5525608]
[1720415587397,100.0,133.96,133.91,38.5525608]
[1720415587771,100.0,133.96,133.92,20.0]
[1720415588661,100.0,133.94,133.92,20.0]
[1720415589275,100.0,133.94,133.91,20.9725608]
[1720415590368,100.0,133.92,133.91,0.9725608]
[1720415593201,100.17,133.92,133.91,0.9725608]
[1720415594772,100.0,133.84,133.82,43.51616]
[1720415595281,100.0,133.84,133.81,0.1]
[1720415596089,100.0,133.84,133.81,6.04225508]
[1720415596702,100.0,133.84,133.82,20.0]
[1720415597306,100.0,133.91,133.82,20.0]
[1720415597507,7.82216763,134.01,133.82,20.0]
[1720415597508,106.4231,133.96,133.87,37.58]
[1720415597672,106.4231,133.96,133.89,37.58]
[1720415598201,106.4231,133.96,133.9,20.0]
[1720415598406,100.0,133.91,133.9,20.0]
[1720415598894,100.0,133.91,133.88,20.0]
[1720415599472,100.0,133.89,133.84,6.3198]
[1720415599667,100.0,133.89,133.84,37.58]
[1720415600379,100.0,133.87,133.84,37.58]
[1720415600900,100.0,133.87,133.85,20.0]
[1720415607804,100.0,133.93,133.86,37.58]
[1720415608106,100.0,133.89,133.87,20.0]
[1720415608278,100.0,133.89,133.85,57.58]
[1720415610018,100.0,133.87,133.85,57.58]
[1720415611698,100.0,133.89,133.85,57.58]
[1720415613825,100.0,133.86,133.85,20.0]
[1720415614190,100.0,133.88,133.85,20.0]
[1720415614703,100.0,133.9,133.85,57.58]
[1720415614902,100.0,133.92,133.85,57.58]
[1720415615694,100.0,133.9,133.85,57.58]
[1720415617198,100.0,133.88,133.85,57.58]
[1720415618101,100.0,133.86,133.85,20.0]
[1720415619227,100.0,133.86,133.83,37.58]
[1720415619518,21.8368,133.9,133.81,6.3978]
[1720415619519,100.0,133.84,133.81,0.1]
[1720415620218,100.0,133.82,133.81,0.1]
[1720415620705,100.0,133.84,133.81,0.1]
[1720415621219,0.17,133.89,133.81,0.1]
[1720415621220,100.0,133.82,133.81,0.1]
[1720415621593,100.17,133.82,133.81,0.1]
[1720415622522,100.0,133.78,133.77,0.8725608]
[1720415622703,100.17,133.78,133.77,0.8725608]
[1720415623422,100.17,133.78,133.71,0.1]
[1720415623423,100.0,133.72,133.71,0.1]
[1720415624298,100.17,133.72,133.71,0.1]
[1720415626319,100.0,133.72,133.71,0.1]
[1720415629111,100.17,133.72,133.71,0.1]
[1720415629901,120.13,133.72,133.71,0.1]
[1720415630104,119.96,133.72,133.71,0.1]
[1720415630607,100.0,133.72,133.71,0.1]
[1720415631414,100.17,133.72,133.71,0.1]
[1720415632106,126.547,133.72,133.71,0.1]
[1720415632436,142.3871,133.72,133.71,0.1]
[1720415633323,126.547,133.72,133.71,0.1]
[1720415634113,106.587,133.72,133.71,0.1]
[1720415634529,100.0,133.72,133.71,0.1]
[1720415636049,100.0,133.78,133.71,0.1]
[1720415636338,100.0,133.77,133.71,0.1]
[1720415636646,100.0,133.75,133.71,0.1]
[1720415637002,100.0,133.75,133.71,20.1]
[1720415637210,100.0,133.73,133.72,45.0]
[1720415637540,100.0,133.73,133.72,65.0]
[1720415638639,100.0,133.73,133.72,45.0]
[1720415639844,6.3181,133.79,133.72,45.0]
[1720415639845,100.0,133.75,133.72,45.0]
[1720415640017,100.0,133.73,133.72,45.0]
[1720415640839,100.0,133.75,133.72,45.0]
[1720415641434,100.0,133.73,133.72,45.0]
[1720415642936,100.0,133.73,133.71,0.1]
[1720415644147,100.0,133.75,133.71,0.1]
[1720415645114,100.0,133.75,133.71,20.1]
[1720415645443,100.0,133.75,133.72,45.0]
[1720415645819,100.0,133.75,133.73,20.0]
[1720415646038,100.0,133.75,133.74,45.0]
[1720415647448,100.0,133.73,133.71,0.1]
[1720415649446,22.4242,133.72,133.71,0.1]
[1720415649613,22.5942,133.72,133.71,0.1]
[1720415650833,6.4226,133.72,133.71,0.1]
[1720415654535,100.0,133.66,133.64,0.8725608]
[1720415656751,100.0,133.68,133.64,0.8725608]
[1720415657122,106.2526,133.72,133.64,0.8725608]
[1720415657322,100.0,133.72,133.64,0.8725608]
[1720415657549,100.0,133.7,133.64,0.8725608]
[1720415658350,100.0,133.68,133.64,0.8725608]
[1720415659467,100.0,133.66,133.64,0.8725608]
[1720415666133,100.0,133.62,133.61,0.1]
[1720415666337,100.17,133.62,133.61,0.1]
[1720415668340,100.0,133.58,133.51,0.1]
[1720415668545,100.17,133.58,133.51,0.1]
[1720415668841,106.4073,133.58,133.51,0.1]
[1720415670542,106.4073,133.58,133.51,20.1]
[1720415671447,106.4073,133.58,133.51,0.1]
[1720415672265,122.3194,133.58,133.51,0.1]
[1720415672467,142.2794,133.58,133.51,0.1]
[1720415673159,126.3673,133.58,133.51,0.1]
[1720415675849,106.4073,133.58,133.51,0.1]
[1720415677672,126.3673,133.58,133.51,0.1]
[1720415679746,100.0,133.52,133.51,0.1]
[1720415679982,100.17,133.52,133.51,0.1]
[1720415680867,100.0,133.52,133.51,0.1]
[1720415682063,100.17,133.52,133.51,0.1]
[1720415692565,122.1777,133.52,133.5,0.8725608]
[1720415692885,100.0,133.42,133.41,0.1]
[1720415693792,100.0,133.42,133.28,45.3329]
[1720415693793,100.0,133.32,133.21,6.2944]
[1720415693993,100.0,133.32,133.26,37.83]
[1720415694164,100.0,133.32,133.24,16.3764608]
[1720415694491,100.0,133.32,133.26,37.83]
[1720415694686,100.0,133.32,133.24,22.24438998]
[1720415694867,100.0,133.35,133.29,37.83]
[1720415695192,100.0,133.33,133.29,37.83]
[1720415695378,100.0,133.33,133.31,37.93]
[1720415695589,100.0,133.35,133.31,37.93]
[1720415696267,100.0,133.35,133.32,20.0]
[1720415696693,100.0,133.35,133.32,37.83]
[1720415696992,100.0,133.33,133.31,0.1]
[1720415697385,100.0,133.35,133.31,0.1]
[1720415698813,100.0,133.37,133.31,20.27]
[1720415699009,6.3726,133.45,133.34,37.83]
[1720415699010,100.0,133.4,133.34,37.83]
[1720415699200,100.0,133.43,133.38,37.83]
[1720415699905,100.0,133.41,133.38,37.83]
[1720415700482,100.0,133.43,133.38,37.83]
[1720415700682,100.0,133.43,133.35,20.0]
[1720415701984,100.0,133.43,133.36,0.17]
[1720415702179,100.0,133.43,133.35,20.0]
[1720415702482,6.3959,133.5,133.35,20.0]
[1720415702483,100.0,133.41,133.35,20.0]
[1720415702691,100.0,133.43,133.35,20.0]
[1720415703289,100.0,133.38,133.34,16.5492]
[1720415703479,0.17,133.42,133.31,0.1]
[1720415703480,100.0,133.32,133.31,0.1]
[1720415703882,100.0,133.38,133.31,0.1]
[1720415704513,100.0,133.35,133.31,0.1]
[1720415704814,100.0,133.33,133.31,0.1]
[1720415707888,100.0,133.35,133.31,0.1]
[1720415708413,100.0,133.33,133.31,0.1]
[1720415708588,100.0,133.4,133.31,0.1]
[1720415709218,100.0,133.38,133.31,0.1]
[1720415709616,6.3983,133.46,133.31,0.1]
[1720415709617,100.0,133.4,133.31,0.1]
[1720415709794,100.0,133.38,133.31,0.1]
[1720415710206,100.0,133.36,133.31,0.1]
[1720415710403,100.0,133.39,133.33,6.6265]
[1720415710606,100.0,133.39,133.34,65.0]
[1720415711309,100.0,133.37,133.34,65.0]
[1720415712811,100.0,133.39,133.34,65.0]
[1720415714122,100.0,133.41,133.34,65.0]
[1720415715111,100.0,133.38,133.34,65.0]
[1720415716290,100.0,133.44,133.35,42.78]
[1720415716496,100.0,133.4,133.36,65.0]
[1720415717301,100.0,133.38,133.32,15.4137]
[1720415717538,100.0,133.36,133.32,15.4137]
[1720415718310,100.0,133.39,133.32,15.4137]
[1720415718522,100.0,133.38,133.32,15.4137]
[1720415718722,100.0,133.38,133.33,65.0]
[1720415719495,100.0,133.41,133.33,65.0]
[1720415719794,100.0,133.43,133.34,42.78]
[1720415719993,100.0,133.43,133.35,20.0]
[1720415721100,100.0,133.43,133.36,0.17]
[1720415721501,100.0,133.43,133.37,6.0612]
[1720415721699,100.0,133.43,133.38,20.0]
[1720415722131,260.1,133.51,133.39,16.6715]
[1720415722132,100.0,133.47,133.39,16.6715]
[1720415722302,100.0,133.47,133.4,20.0]
[1720415723017,100.0,133.45,133.4,20.0]
[1720415723319,100.0,133.43,133.4,20.0]
[1720415723707,100.0,133.47,133.4,20.0]
[1720415724313,100.0,133.49,133.41,0.17]
[1720415724510,100.0,133.45,133.4,20.0]
[1720415724933,100.0,133.43,133.4,20.0]
[1720415727305,100.0,133.41,133.4,20.0]
[1720415727506,100.0,133.41,133.39,16.5015]
[1720415728400,100.0,133.44,133.39,16.5015]
[1720415729337,100.0,133.44,133.4,20.0]
[1720415730124,100.0,133.46,133.4,20.0]
[1720415731120,100.0,133.5,133.4,20.0]
[1720415731312,100.0,133.5,133.41,0.17]
[1720415731713,100.0,133.5,133.41,42.78]
[1720415731907,100.0,133.5,133.43,6.4006]
[1720415732121,100.0,133.54,133.45,16.5275]
[1720415732428,100.0,133.54,133.46,20.0]
[1720415732625,100.0,133.54,133.46,20.17]
[1720415733211,100.0,133.5,133.46,20.0]
[1720415733416,100.0,133.52,133.46,20.0]
[1720415733618,100.0,133.5,133.46,20.0]
[1720415733935,100.0,133.48,133.45,16.5275]
[1720415735228,100.0,133.48,133.46,20.0]
[1720415736005,100.0,133.48,133.42,42.61]
[1720415736006,100.0,133.46,133.42,42.61]
[1720415736222,100.0,133.44,133.41,22.1012]
[1720415736422,100.0,133.47,133.41,22.1012]
[1720415736730,100.0,133.47,133.41,27.93538219]
[1720415737236,100.0,133.45,133.41,27.93538219]
[1720415738139,100.0,133.47,133.41,27.93538219]
[1720415738707,100.0,133.47,133.42,20.0]
[1720415739308,100.0,133.49,133.42,20.0]
[1720415741233,100.0,133.46,133.42,20.0]
[1720415741534,100.0,133.44,133.42,20.0]
[1720415741830,100.0,133.44,133.37,6.0749]
[1720415742013,100.0,133.42,133.37,21.9931]
[1720415742214,100.0,133.42,133.37,28.00424002]
[1720415742527,0.17,133.5,133.37,28.00424002]
[1720415742528,100.0,133.44,133.37,28.00424002]
[1720415743012,100.0,133.52,133.39,42.61]
[1720415743540,100.0,133.52,133.4,16.2871]
[1720415743713,100.0,133.5,133.41,6.2213]
[1720415743913,100.0,133.52,133.43,42.61]
[1720415744226,100.0,133.5,133.44,20.17]
[1720415745220,100.0,133.48,133.44,20.0]
[1720415745640,16.396,133.56,133.41,6.2213]
[1720415745641,100.0,133.44,133.41,6.2213]
[1720415745824,100.0,133.44,133.4,16.2871]
[1720415746143,100.0,133.42,133.4,16.2871]
[1720415746432,100.0,133.42,133.36,15.0012]
[1720415746619,100.0,133.4,133.36,15.0012]
[1720415747842,100.0,133.4,133.37,20.0]
[1720415748142,100.0,133.4,133.36,15.0012]
[1720415748341,100.0,133.38,133.35,6.6186]
[1720415748642,100.0,133.38,133.33,16.2108]
[1720415750727,100.0,133.38,133.34,20.0]
[1720415752639,100.0,133.46,133.34,20.0]
[1720415752938,100.0,133.42,133.35,0.17]
[1720415753747,100.0,133.44,133.35,0.17]
[1720415754032,100.0,133.45,133.35,42.78]
[1720415754234,100.0,133.45,133.37,22.0438]
[1720415754438,100.0,133.5,133.39,42.61]
[1720415754638,100.0,133.47,133.4,20.0]
[1720415755241,100.0,133.45,133.4,20.0]
[1720415755737,6.4252,133.52,133.4,20.0]
[1720415755738,100.0,133.43,133.4,20.0]
[1720415755914,100.0,133.39,133.35,16.0657]
[1720415756240,100.0,133.35,133.31,0.1]
[1720415756533,0.17,133.44,133.31,0.1]
[1720415756534,100.0,133.38,133.31,0.1]
[1720415756738,100.0,133.34,133.31,0.1]
[1720415756945,100.0,133.32,133.31,0.1]
[1720415757117,0.17,133.37,133.31,0.1]
[1720415757118,100.0,133.33,133.31,0.1]
[1720415759544,100.0,133.35,133.31,0.1]
[1720415760732,266.6041,133.41,133.31,0.1]
[1720415760733,100.0,133.37,133.31,0.1]
[1720415760925,100.0,133.35,133.31,0.1]
[1720415761124,100.0,133.35,133.31,20.1]
[1720415761641,100.0,133.38,133.31,20.1]
[1720415761834,100.0,133.4,133.31,52.23]
[1720415762042,100.0,133.42,133.32,20.17]
[1720415762426,100.0,133.42,133.33,6.1213]
[1720415762629,100.0,133.42,133.34,20.0]
[1720415762828,100.0,133.44,133.35,67.9856]
[1720415763123,100.0,133.44,133.36,20.0]
[1720415763325,100.0,133.44,133.37,0.17]
[1720415764345,100.0,133.4,133.36,20.0]
[1720415765619,100.0,133.44,133.36,20.0]
[1720415766125,100.0,133.42,133.36,20.0]
[1720415766846,100.0,133.39,133.36,20.0]
[1720415767420,100.0,133.39,133.33,5.89307232]
[1720415767621,100.0,133.37,133.31,0.1]
[1720415767929,6.218,133.4,133.31,0.1]
[1720415767930,100.0,133.35,133.31,0.1]
[1720415768126,100.0,133.37,133.31,0.1]
[1720415768423,100.0,133.35,133.31,0.1]
[1720415769231,0.17,133.38,133.31,0.1]
[1720415769232,100.0,133.36,133.31,0.1]
[1720415769432,100.0,133.32,133.31,0.1]
[1720415769763,100.0,133.34,133.31,0.1]
[1720415769925,100.0,133.35,133.31,0.1]
[1720415770927,0.17,133.39,133.27,19.6]
[1720415770928,100.0,133.37,133.27,19.6]
[1720415771325,100.0,133.37,133.26,0.17]
[1720415771550,100.0,133.37,133.27,0.17]
[1720415771747,100.0,133.35,133.27,0.17]
[1720415771928,100.0,133.37,133.27,0.17]
[1720415772253,100.0,133.37,133.26,0.17]
[1720415773055,100.0,133.39,133.26,0.17]
[1720415773351,100.0,133.39,133.29,52.13]
[1720415773526,100.0,133.39,133.3,20.17]
[1720415773934,100.0,133.39,133.3,20.0]
[1720415774251,100.0,133.34,133.29,52.13]
[1720415774948,100.17,133.38,133.29,52.13]
[1720415775145,100.0,133.38,133.29,52.13]
[1720415775657,100.0,133.35,133.29,52.13]
[1720415776336,100.0,133.35,133.3,20.0]
[1720415776933,100.0,133.37,133.3,20.0]
[1720415777354,100.0,133.35,133.3,20.0]
[1720415779164,100.0,133.4,133.31,0.17]
[1720415779465,100.0,133.36,133.3,20.0]
[1720415781456,100.0,133.34,133.29,42.64]
[1720415781664,100.0,133.32,133.29,6.1185164]
[1720415781959,100.0,133.32,133.27,22.5142]
[1720415783041,100.0,133.34,133.27,22.5142]
[1720415783358,100.0,133.36,133.28,20.0]
[1720415785154,100.0,133.36,133.29,42.81]
[1720415785366,100.0,133.36,133.3,20.0]
[1720415785657,100.0,133.4,133.3,20.0]
[1720415785861,100.0,133.37,133.3,20.0]
[1720415786067,100.0,133.39,133.31,0.17]
[1720415786650,100.0,133.37,133.31,0.17]
[1720415788164,100.0,133.37,133.3,20.0]
[1720415790975,100.0,133.39,133.3,20.0]
[1720415791157,100.0,133.39,133.31,0.17]
[1720415792609,100.0,133.41,133.31,0.17]
[1720415792871,6.3671,133.43,133.33,42.64]
[1720415792872,100.0,133.43,133.33,42.64]
[1720415793049,100.0,133.43,133.34,20.17]
[1720415793250,106.2012,133.46,133.34,20.17]
[1720415793558,100.0,133.44,133.34,20.17]
[1720415793763,106.2012,133.46,133.34,20.17]
[1720415794075,100.0,133.44,133.34,20.17]
[1720415798064,100.0,133.46,133.34,20.17]
[1720415798271,100.0,133.44,133.37,42.64]
[1720415798480,100.0,133.44,133.38,20.0]
[1720415798688,6.0614,133.5,133.38,20.0]
[1720415798689,100.0,133.46,133.38,20.0]
[1720415798859,100.0,133.48,133.39,16.4717]
[1720415799063,100.0,133.52,133.41,49.0923]
[1720415799284,100.0,133.5,133.42,20.17]
[1720415799677,100.0,133.48,133.42,20.17]
[1720415800078,100.0,133.5,133.42,20.17]
[1720415800777,100.0,133.5,133.43,45.0]
[1720415800978,100.0,133.5,133.44,20.0]
[1720415801176,100.0,133.5,133.45,45.0]
[1720415801370,100.0,133.5,133.46,20.0]
[1720415801680,100.0,133.5,133.47,45.0]
[1720415802692,100.0,133.48,133.47,45.0]
[1720415802891,100.0,133.48,133.47,65.0]
[1720415803090,100.0,133.48,133.47,45.0]
[1720415803293,100.0,133.48,133.47,65.0]
[1720415803886,100.0,133.5,133.47,65.0]
[1720415804694,100.0,133.48,133.47,65.0]
[1720415805688,100.0,133.46,133.41,6.4523]
[1720415805869,100.0,133.44,133.39,16.4717]
[1720415806067,6.2959,133.53,133.39,22.31621258]
[1720415806266,100.0,133.51,133.41,42.64]
[1720415806466,106.2959,133.53,133.41,42.64]
[1720415806872,100.0,133.51,133.41,42.64]
[1720415807086,100.0,133.51,133.42,45.0]
[1720415807276,100.0,133.51,133.43,20.17]
[1720415807468,100.0,133.51,133.44,45.0]
[1720415807667,100.0,133.51,133.45,20.0]
[1720415807902,100.0,133.48,133.46,45.0]
[1720415812195,100.0,133.5,133.46,45.0]
[1720415815580,100.0,133.52,133.46,61.4917]
[1720415816576,100.0,133.5,133.46,61.4917]
[1720415817693,100.0,133.5,133.47,20.0]
[1720415818107,100.0,133.5,133.48,45.0]
[1720415818997,100.0,133.5,133.47,45.0]
[1720415820098,100.0,133.53,133.47,45.0]
[1720415821205,100.0,133.53,133.48,20.0]
[1720415821499,100.0,133.53,133.49,45.0]
[1720415821805,100.0,133.51,133.49,45.0]
[1720415822179,100.0,133.51,133.45,55.26039752]
[1720415822180,100.0,133.51,133.45,6.11779752]
[1720415822403,100.0,133.48,133.42,15.0404]
[1720415822620,100.0,133.46,133.42,15.0404]
[1720415822908,100.0,133.5,133.42,15.0404]
[1720415823204,100.0,133.52,133.42,15.0404]
[1720415823413,100.0,133.54,133.42,24.58514467]
[1720415823710,100.0,133.52,133.45,42.64]
[1720415823887,100.0,133.52,133.46,20.0]
[1720415824086,100.0,133.52,133.47,45.0]
[1720415824292,100.0,133.52,133.48,20.0]
[1720415824487,100.0,133.52,133.49,45.0]
[1720415824688,100.0,133.54,133.49,45.0]
[1720415825812,6.4596,133.59,133.5,20.17]
[1720415825996,6.4596,133.59,133.5,20.0]
[1720415825997,100.0,133.57,133.5,20.0]
[1720415826195,100.0,133.53,133.51,45.0]
[1720415826385,6.4596,133.59,133.49,45.0]
[1720415826386,100.0,133.51,133.49,45.0]
[1720415827386,100.0,133.51,133.48,45.0]
[1720415827583,100.0,133.51,133.49,20.0]
[1720415828502,100.0,133.55,133.5,45.0]
[1720415829006,6.4596,133.59,133.5,45.0]
[1720415829007,100.0,133.57,133.5,45.0]
[1720415829211,100.0,133.57,133.51,20.0]
[1720415829511,100.0,133.57,133.52,45.0]
[1720415830415,100.0,133.55,133.52,45.0]
[1720415830804,100.0,133.51,133.47,6.07273765]
[1720415831007,100.0,133.51,133.48,37.8]
[1720415831694,100.0,133.54,133.48,37.8]
[1720415832082,100.0,133.54,133.5,37.8]
[1720415832310,100.0,133.57,133.51,20.0]
[1720415832483,100.0,133.57,133.52,82.8]
[1720415832688,100.0,133.57,133.53,20.0]
[1720415832906,100.0,133.57,133.54,45.0]
[1720415836323,100.0,133.55,133.54,45.0]
[1720415836694,100.0,133.52,133.47,6.6072]
[1720415836897,100.0,133.54,133.49,37.8]
[1720415837704,100.0,133.57,133.51,37.8]
[1720415837903,100.0,133.57,133.53,37.8]
[1720415838218,100.0,133.57,133.54,45.0]
[1720415838408,100.0,133.55,133.54,45.0]
[1720415838609,100.0,133.53,133.51,37.8]
[1720415838797,100.0,133.53,133.52,65.0]
[1720415839320,100.0,133.53,133.52,45.0]
[1720415839494,100.0,133.53,133.47,6.6072]
[1720415839495,100.0,133.51,133.49,37.8]
[1720415839891,100.0,133.49,133.47,37.8]
[1720415840933,100.0,133.47,133.46,5.93292195]
[1720415841102,100.0,133.47,133.44,37.8]
[1720415841301,100.0,133.47,133.42,53.5296]
[1720415841714,100.0,133.49,133.44,37.8]
[1720415841928,100.0,133.48,133.44,37.8]
[1720415844140,100.0,133.48,133.45,45.0]
[1720415844431,100.17,133.5,133.45,45.0]
[1720415845009,100.17,133.5,133.46,20.0]
[1720415845207,100.17,133.5,133.47,45.0]
[1720415845613,100.0,133.5,133.47,45.0]
[1720415845811,100.0,133.52,133.47,45.0]
[1720415846013,100.0,133.5,133.48,20.0]
[1720415846253,100.0,133.5,133.49,45.0]
[1720415846417,6.3977,133.55,133.49,65.0]
[1720415846418,100.0,133.52,133.49,65.0]
[1720415846622,100.0,133.52,133.49,45.0]
[1720415847916,100.0,133.54,133.49,45.0]
[1720415848118,100.0,133.54,133.5,20.0]
[1720415850036,100.0,133.51,133.5,20.0]
[1720415850246,100.0,133.51,133.5,45.0]
[1720415850625,100.0,133.51,133.49,45.0]
[1720415851838,100.0,133.49,133.42,15.7296]
[1720415852041,100.0,133.49,133.45,37.8]
[1720415852435,100.17,133.52,133.45,37.8]
[1720415852617,100.0,133.5,133.45,37.8]
[1720415853237,100.17,133.52,133.46,65.0]
[1720415853832,100.17,133.52,133.47,37.8]
[1720415853833,100.0,133.52,133.47,37.8]
[1720415854134,100.0,133.52,133.48,65.0]
[1720415854652,100.0,133.5,133.48,65.0]
[1720415855171,100.0,133.53,133.48,65.0]
[1720415857564,100.0,133.51,133.48,65.0]
[1720415859844,100.0,133.51,133.48,45.0]
[1720415860048,100.0,133.51,133.45,37.8]
[1720415860245,100.0,133.49,133.46,45.0]
[1720415860765,0.17,133.52,133.46,45.0]
[1720415860937,100.17,133.52,133.46,45.0]
[1720415861267,100.0,133.52,133.46,45.0]
[1720415862459,0.17,133.51,133.46,45.0]
[1720415862861,100.0,133.52,133.46,45.0]
[1720415864562,100.0,133.49,133.45,37.8]
[1720415864765,100.0,133.49,133.46,20.0]